[Event "HUN Women vs Morgan Stanley 2022"]
[Site "Budapest"]
[Date "2022.06.27"]
[Round "5.3"]
[White "Gaal, Zsoka"]
[Black "Lizak, Peter"]
[Result "0-1"]
[ECO "A06"]
[WhiteElo "2323"]
[BlackElo "2400"]
[Annotator "TA"]
[PlyCount "90"]
[EventDate "2022.06.27"]
[EventType "schev"]
[EventCountry "HUN"]
[SourceTitle "playchess.com"]
[Source "ChessBase"]
[SourceQuality "1"]
[TimeControl "900+2"]

{[%evp 9,89,26,34,34,47,31,43,28,50,61,83,0,0,0,9,22,59,0,0,0,0,-9,9,0,0,16,168,177,184,164,164,164,207,201,192,187,206,189,206,153,183,137,195,102,112,83,106,42,71,87,90,63,65,48,65,0,0,0,0,0,0,0,0,0,0,0,0,0,0,0,0,0,0,0,0,-29996,-29997,-29997,-29998,-29998,-29999,-29999]} 1. g3 {[%emt 0:00:09]} d5 {[%emt 0:00:10]} 2. Nf3 {[%emt 0:00:16]} Nc6 {[%emt 0:00:08]} 3. d4 {[%emt 0:00:34]} Bf5 {[%emt 0:00:03]} 4. Bg2 {[%emt 0:00:10]} Qd7 {[%emt 0:00:12]} 5. O-O {[%emt 0:00:35]} Bh3 {[%emt 0:00:08]} 6. c4 {[%emt 0:00:28] D02: 1 d4 d5 2 Nf3 sidelines, including 2...Nf6 3 g3 and 2...Nf6 3 Bf4.} Bxg2 {[%emt 0:00:04]} 7. Kxg2 {[%emt 0:00:01]} e6 {[%emt 0:00:04]} 8. Nc3 {[%emt 0:00:15] White is slightly better.} dxc4 {[%emt 0:01:24]} 9. e4 {[%emt 0:00:57] Strongly threatening d5.} O-O-O {[%emt 0:00:26][%cal Rc6d4]} 10. Be3 {[%emt 0:02:51] [#]} (10. d5 $16 exd5 11. exd5) 10... Bb4 $146 {[%emt 0:00:16]} ({Predecessor:} 10... Nf6 11. Qa4 Bb4 12. Ne5 Nxe5 13. Qxb4 Nc6 14. Qxc4 Nxd4 15. Rfd1 e5 16. Bxd4 exd4 {0-1 (41) Nikolenko,V (2242)-Lefebr,V (2085) Cheliabinsk 2011}) 11. Qa4 {[%emt 0:01:03] Black must now prevent d5.} Bxc3 {[%emt 0:04:50]} 12. bxc3 {[%emt 0:00:02]} Nf6 {[%emt 0:00:02]} 13. Bg5 {[%emt 0:01:04]} ({White should play} 13. Nd2 $1 $14) 13... Nxe4 {[%emt 0:03:36]} 14. Bxd8 {[%emt 0:00:05][%cal Bg5d8,Bd8c7,Bc7e5][%mdl 32] Bh4 is the strong threat.} Qd5 {[%emt 0:00:18]} 15. Bxc7 {[%emt 0:03:01]} g5 {[%emt 0:03:27][%cal Bg7g5,Bg5g4][%mdl 32] Prevents Bf4. And now ...g4 would win.} (15... Nd2 16. Qd1 Nxf3 17. Qxf3 $16) 16. Be5 {[%emt 0:01:56]} g4 {[%emt 0:00:02]} 17. Kg1 $1 {[%emt 0:01:15]} (17. Bxh8 $2 Nxc3 18. Qc2 Qxf3+ 19. Kg1 Ne2+ 20. Qxe2 Qxe2 $19) 17... Nxc3 $2 {[%emt 0:00:05] [#]} (17... gxf3 $11 {and Black has nothing to worry.} 18. Rfc1 (18. Bxh8 $2 {perishes.} Qf5 $19) 18... Nxe5 19. dxe5 Nxf2 20. Kxf2 Qd2+ 21. Kxf3 Qd3+ 22. Kf2 Qd2+ 23. Kf3 (23. Kg1 Qe3+ 24. Kh1 Qf3+ 25. Kg1 Qe3+ 26. Kh1 Qf3+ 27. Kg1 Qe3+ $11) 23... Qd3+ 24. Kg2 Qe2+ 25. Kh3 Qh5+ 26. Kg2 Qe2+ 27. Kh3 Qh5+ 28. Kg2 Qe2+) 18. Qc2 $1 $18 {[%emt 0:00:11]} Qxf3 {[%emt 0:00:02]} 19. Rfe1 {[%emt 0:00:03]} Nxe5 {[%emt 0:00:11]} 20. dxe5 {[%emt 0:00:22] Threatens to win with Re3.} Nd5 {[%emt 0:00:06] Inhibits Re3.} 21. Qxc4+ {[%emt 0:00:01]} Kb8 {[%emt 0:00:01]} 22. Qe4 {[%emt 0:00:13]} Qxe4 {[%emt 0:00:00]} 23. Rxe4 {[%emt 0:00:01][%mdl 4096] Endgame KRR-KRN} h5 {[%emt 0:00:01]} 24. Rc1 {[%emt 0:00:06]} Rd8 {[%emt 0:00:03]} 25. Kg2 {[%emt 0:00:03]} (25. f3 $18) 25... Ne7 {[%emt 0:00:03]} (25... b5 $16 26. h3 Rg8) 26. Rec4 {[%emt 0:00:01]} ({Better is} 26. h3 $18) 26... Nc6 {[%emt 0:00:02]} 27. Rc5 {[%emt 0:00:06]} Rd2 {[%emt 0:00:02] [#]} 28. a4 {[%emt 0:00:03]} (28. R1c4 $1 $16) 28... a6 {[%emt 0:00:02]} 29. R1c4 {[%emt 0:00:03]} Kc7 {[%emt 0:00:02]} 30. Rf4 {[%emt 0:00:01]} Kb6 {[%emt 0:00:01]} 31. Rc1 {[%emt 0:00:02]} ({Reject} 31. Rfc4 Ra2 $11) 31... Nxe5 {[%emt 0:00:02]} 32. Re1 {[%emt 0:00:04]} (32. Rb4+ $1 $14 Ka5 33. Rxb7) 32... Nd3 $11 {[%emt 0:00:02][%csl LRe1,LRf4]} 33. Rb1+ {[%emt 0:00:01]} Kc5 {[%emt 0:00:04]} 34. Rxf7 {[%emt 0:00:01]} b5 {[%emt 0:00:01]} 35. axb5 {[%emt 0:00:01]} axb5 {[%emt 0:00:00]} 36. Kg1 {[%emt 0:00:05]} b4 {[%emt 0:00:02]} 37. Rc7+ {[%emt 0:00:03]} Kd4 {[%emt 0:00:02]} 38. Rd7+ {[%emt 0:00:01]} Kc3 {[%emt 0:00:01]} 39. Rc7+ {[%emt 0:00:01]} Kd4 {[%emt 0:00:02]} 40. Rd7+ {[%emt 0:00:00]} Kc3 {[%emt 0:00:04]} 41. Rc7+ {[%emt 0:00:01]} Kd4 {[%emt 0:00:02]} 42. Rb3 $2 {[%emt 0:00:06][%mdl 8192] [#]} (42. Rd7+ $11 Kc4 43. Rc7+ Kd4) 42... Rd1+ $1 {[%emt 0:00:02] Black mates.} 43. Kg2 {[%emt 0:00:00]} Ne1+ {[%emt 0:00:00]} 44. Kf1 {[%emt 0:00:01]} Nf3+ {[%emt 0:00:02][%mdl 64] Discovered Attack} 45. Ke2 {[%emt 0:00:02]} Re1# {Never resign too early!  Weighted Error Value: White=0.36/Black=0.14 (very precise)} 0-1

[Event "HUN Women vs Morgan Stanley 2022"]
[Site "Budapest"]
[Date "2022.06.27"]
[Round "5.4"]
[White "Szamoskozi, Gabor"]
[Black "Lazarne Vajda, Szidonia"]
[Result "1-0"]
[ECO "C31"]
[WhiteElo "2243"]
[BlackElo "2313"]
[Annotator "TA"]
[PlyCount "88"]
[EventDate "2022.06.27"]
[EventType "schev"]
[EventCountry "HUN"]
[SourceTitle "playchess.com"]
[Source "ChessBase"]
[SourceQuality "1"]
[TimeControl "900+2"]

{[%evp 13,88,46,52,57,56,56,104,100,106,87,85,77,104,97,160,152,171,160,141,114,127,102,135,102,102,76,166,126,123,102,151,145,222,202,259,278,344,323,317,279,279,176,172,0,181,158,161,151,161,152,198,184,224,197,324,275,271,261,404,352,480,492,489,487,456,491,525,525,640,564,517,515,993,971,829,754,341]} 1. e4 {[%emt 0:00:05]} e5 {[%emt 0:00:06][%cal Be7e5,Be5e4][%mdl 32]} 2. f4 {[%emt 0:00:04]} d5 {[%emt 0:00:13]} 3. exd5 {[%emt 0:00:02]} e4 {[%emt 0:00:44]} 4. d3 {[%emt 0:00:03]} Qxd5 {[%emt 0:01:03]} 5. Nc3 {[%emt 0:00:12]} Bb4 {[%emt 0:00:28]} 6. Bd2 {[%emt 0:00:24]} Bxc3 {[%emt 0:00:15]} 7. Bxc3 {[%emt 0:00:04]} Nf6 {[%emt 0:00:17]} 8. dxe4 {[%emt 0:00:27] C32: Falkbeer Counter Gambit: 3 exd5 e4 4 d3 Nf6.} Qxe4+ {[%emt 0:00:11]} 9. Qe2 {[%emt 0:00:06]} O-O {[%emt 0:01:56]} (9... Bg4 $14 10. Nf3 Qxe2+ 11. Bxe2 Nbd7) 10. Bxf6 $16 {[%emt 0:00:20] This bishop pair is nice. White is better.} Qxe2+ {[%emt 0:00:02]} 11. Bxe2 {[%emt 0:00:09]} gxf6 {[%emt 0:00:01]} 12. O-O-O {[%emt 0:00:22]} Nd7 {[%emt 0:00:46]} 13. Bf3 {[%emt 0:00:10] [#]} Nc5 $146 {[%emt 0:00:17] [#]} (13... f5 $142) ({Predecessor:} 13... Rb8 14. Ne2 f5 15. Nd4 Nf6 16. Rhe1 Bd7 17. Re5 Ng4 18. Rc5 Nxh2 19. Rxc7 Nxf3 20. Rxd7 Nxd4 21. R1xd4 {½-½ (59) Golovankov,V (2289)-Savinov,L (2159) St Petersburg 2007}) 14. Ne2 $1 {[%emt 0:00:24]} a5 {[%emt 0:00:10]} 15. Rd5 {[%emt 0:01:32]} Ne6 {[%emt 0:00:20]} 16. Rhd1 {[%emt 0:00:07]} c6 {[%emt 0:00:42]} 17. Rd6 {[%emt 0:00:06]} a4 {[%emt 0:00:38]} 18. a3 {[%emt 0:01:38]} f5 {[%emt 0:00:12]} 19. g3 {[%emt 0:00:15]} Ng7 {[%emt 0:00:37]} (19... Re8 $16 {is a better defense.}) 20. Nc3 {[%emt 0:01:24][%cal Be2c3,Bc3a4,Ba4c5][%mdl 32]} Ne6 {[%emt 0:01:00]} 21. Bg2 {[%emt 0:00:40] White is much more active. The black rooks are badly placed.} Nc5 {[%emt 0:00:15] [#]} ({Black should play} 21... Ra5 22. Re1 Kg7) 22. Re1 $1 {[%emt 0:01:57]} Be6 {[%emt 0:00:07]} (22... Ra5 $16 23. Re5 Kg7 24. Nxa4 Rxa4) 23. Re5 $18 {[%emt 0:00:07]} Na6 {[%emt 0:05:00]} 24. Nxa4 {[%emt 0:00:07]} Nc7 {[%emt 0:00:09]} 25. Nc5 {[%emt 0:00:16]} Rab8 {[%emt 0:00:12]} 26. Nxe6 {[%emt 0:00:28]} fxe6 {[%emt 0:00:04]} 27. Rd7 {[%emt 0:00:13]} Rf7 {[%emt 0:00:01]} 28. Rd6 {[%emt 0:00:20]} (28. Rd3 $18) 28... Kg7 $2 {[%emt 0:00:03]} (28... Rff8 $1 $11) 29. Bf1 {[%emt 0:00:05]} Kf6 {[%emt 0:00:03]} 30. Bc4 $36 {[%emt 0:00:48][%cal Rc4e6][%mdl 2048] Keeping Black busy.} Re7 {[%emt 0:00:02]} 31. b4 {[%emt 0:00:26]} Rbe8 {[%emt 0:00:05]} (31... Ree8 $16 {was called for.} 32. Bd3 Ke7) 32. Kb2 {[%emt 0:00:08]} Rg8 {[%emt 0:00:01]} 33. a4 {[%emt 0:00:17] Threatens to win with b5.} h5 {[%emt 0:00:02]} (33... Ra8 $142 34. Bb3 Ree8) 34. Bd3 {[%emt 0:00:10] aiming for Rxf5+.} Kf7 {[%emt 0:00:02]} 35. b5 {[%emt 0:00:20]} cxb5 {[%emt 0:00:01]} (35... Ra8 $142 36. bxc6 Rxa4 37. Bxf5 (37. cxb7 Rb4+ 38. Kc1 Rxb7 $18) 37... exf5) 36. axb5 {[%emt 0:00:02]} Ne8 {[%emt 0:00:01] [#]} 37. Rdxe6 {[%emt 0:00:50][%mdl 512] White is clearly winning.} Rxe6 {[%emt 0:00:02]} 38. Rxe6 {[%emt 0:00:01]} Kxe6 {[%emt 0:00:06]} 39. Bc4+ {[%emt 0:00:01][%mdl 64] Skewer} Ke7 {[%emt 0:00:03]} 40. Bxg8 {[%emt 0:00:02]} Nd6 {[%emt 0:00:00]} 41. Bd5 {[%emt 0:00:16] Black must now prevent b6.} Nxb5 {[%emt 0:00:03]} 42. Bxb7 {[%emt 0:00:03] Hoping for c4.} Nd4 {[%emt 0:00:03]} (42... h4 $142 43. gxh4 Nd4) 43. Kc3 {[%emt 0:00:05]} Ne6 44. Kc4 h4 {Weighted Error Value: White=0.21 (precise) /Black=0.45} 1-0

[Event "HUN Women vs Morgan Stanley 2022"]
[Site "Budapest"]
[Date "2022.06.27"]
[Round "5.5"]
[White "Terbe, Julianna"]
[Black "Novaky, Csaba"]
[Result "1/2-1/2"]
[ECO "A05"]
[WhiteElo "2304"]
[BlackElo "2091"]
[Annotator "TA"]
[PlyCount "111"]
[EventDate "2022.06.27"]
[EventType "schev"]
[EventCountry "HUN"]
[SourceTitle "playchess.com"]
[Source "ChessBase"]
[SourceQuality "1"]
[TimeControl "900+2"]

{[%evp 10,111,23,29,25,10,10,9,5,0,0,3,9,0,-15,-18,0,8,0,0,0,0,11,8,12,0,2,0,0,0,0,0,0,0,0,0,29,28,76,76,76,76,118,94,112,118,655,165,140,81,72,73,77,79,119,109,118,120,135,94,285,118,315,300,276,207,190,175,238,115,110,89,300,300,300,270,334,241,1550,1520,1547,1496,1555,1340,1568,614,4730,4697,3943,3700,1263,66,66,66,66,0,0,0,0,0,0,0,0,0]} 1. Nf3 {[%emt 0:00:04]} Nf6 {[%emt 0:00:04]} 2. d4 {[%emt 0:00:02]} c5 {[%emt 0:00:03]} 3. c3 {[%emt 0:00:06]} g6 {[%emt 0:00:21]} 4. Bf4 {[%emt 0:00:14]} cxd4 {[%emt 0:00:06]} 5. cxd4 {[%emt 0:00:01]} Bg7 {[%emt 0:00:15]} 6. Nc3 {[%emt 0:00:02]} O-O {[%emt 0:00:22] A46: 1 d4 Nf6 2 Nf3 e6: Torre, London and Colle Systems.} 7. e4 {[%emt 0:00:20]} d5 {[%emt 0:00:23]} 8. e5 {[%emt 0:00:02]} Ne4 {[%emt 0:00:54]} 9. Bd3 {[%emt 0:00:18]} Bf5 {[%emt 0:01:32]} 10. O-O {[%emt 0:01:24]} Nc6 {[%emt 0:00:41] [#]} 11. Qe1 $146 {[%emt 0:02:19]} ({Predecessor:} 11. Rc1 e6 12. Re1 Nb4 13. Bxe4 dxe4 14. Nxe4 Bxe4 15. Rxe4 Qd5 16. Re3 Qxa2 17. Rb3 Qa4 18. Bd2 a5 19. Bxb4 axb4 20. Rc4 Qxb3 {0-1 (21) Serer,P (1800)-De Freitas,J (1858) Florianopolis 2017}) 11... Nxc3 {[%emt 0:01:27]} 12. Qxc3 {[%emt 0:00:03]} Bxd3 {[%emt 0:00:08]} 13. Qxd3 {[%emt 0:00:02]} Qb6 {[%emt 0:00:08]} 14. Qd2 {[%emt 0:00:21]} Qb4 {[%emt 0:00:23]} 15. Qe3 $1 {[%emt 0:01:41]} Na5 {[%emt 0:00:32]} 16. b3 {[%emt 0:00:21]} e6 {[%emt 0:01:06]} 17. Bh6 {[%emt 0:00:35]} Rfc8 {[%emt 0:00:47]} 18. Bxg7 {[%emt 0:00:38]} Kxg7 {[%emt 0:00:01]} 19. Rfc1 {[%emt 0:01:07]} Nc6 {[%emt 0:00:25]} 20. h4 {[%emt 0:00:17]} h6 {[%emt 0:00:59]} 21. h5 {[%emt 0:01:46]} g5 {[%emt 0:01:12]} 22. a3 {[%emt 0:00:01]} Qe7 {[%emt 0:00:19]} 23. Nh2 {[%emt 0:00:23]} f5 {[%emt 0:00:19] Inhibits Ng4.} (23... Qf8 $11) 24. exf6+ $1 $16 {[%emt 0:00:03]} Qxf6 {[%emt 0:00:05]} 25. Ng4 {[%emt 0:00:30]} Qf7 {[%emt 0:00:51]} 26. Rc3 {[%emt 0:00:41] Strongly threatening Re1.} Re8 {[%emt 0:00:38]} 27. Ne5 {[%emt 0:00:45]} Qxh5 {[%emt 0:01:00][%mdl 8192]} (27... Qf4 $16) 28. Nxc6 $2 {[%emt 0:00:05]} (28. g4 $1 {[%cal Rg4h5]} Qh4 29. Kg2 (29. Qf3 Rf8 $17)) 28... bxc6 $18 {[%emt 0:00:01] [#]} 29. Rxc6 {[%emt 0:00:02]} (29. Qe5+ $142 $1 Kg8 30. Rxc6) 29... Qf7 $16 {[%emt 0:00:14]} 30. Rac1 {[%emt 0:00:18]} Re7 {[%emt 0:00:03] Inhibits Rc7.} 31. b4 {[%emt 0:00:30] White is more active.} Rae8 {[%emt 0:00:06]} 32. Re1 {[%emt 0:00:25]} Qf5 {[%emt 0:00:03]} 33. a4 {[%emt 0:00:17]} e5 {[%emt 0:00:03]} 34. dxe5 {[%emt 0:00:06]} Rxe5 $2 {[%emt 0:00:01]} (34... Qxe5 $16 35. Qxe5+ Rxe5 36. Rxe5 Rxe5) 35. Qd4 {[%emt 0:00:03]} (35. Qxa7+ $18 {and the rest is easy.} Qf7 36. Qxf7+ Kxf7 37. Rxe5 Rxe5 38. Kf1) 35... Kg8 $2 {[%emt 0:00:08]} (35... R8e7 $16) 36. Rxe5 $18 {[%emt 0:00:06]} Qxe5 {[%emt 0:00:08]} 37. Qxe5 {[%emt 0:00:05]} Rxe5 {[%emt 0:00:01]} 38. Rxh6 {[%emt 0:00:04][%mdl 4096] Endgame KR-KR} Re4 {[%emt 0:00:04] [#]} (38... Re1+ $142 39. Kh2 Re4) 39. Rg6+ {[%emt 0:00:06]} (39. Rd6 $1 $18 {[%cal Rd6d5] is the precise move to win.}) 39... Kf7 $16 {[%emt 0:00:00]} 40. Rxg5 {[%emt 0:00:01]} Rxb4 $2 {[%emt 0:00:02]} (40... Ke6 $16) 41. Rxd5 $18 {[%emt 0:00:01]} Rxa4 {[%emt 0:00:01]} 42. f3 {[%emt 0:00:04]} a5 {[%emt 0:00:03]} 43. Kf2 {[%emt 0:00:04]} Ra1 $2 {[%emt 0:00:02]} (43... Ke6 44. Rd2 Ra1) 44. g4 {[%emt 0:00:02]} Ke6 {[%emt 0:00:01]} 45. Rb5 {[%emt 0:00:01]} a4 {[%emt 0:00:01]} 46. Kg3 {[%emt 0:00:02]} a3 {[%emt 0:00:01]} 47. Ra5 {[%emt 0:00:00]} Kf6 {[%emt 0:00:03]} 48. Kf4 {[%emt 0:00:01]} Ke6 {[%emt 0:00:01]} 49. g5 {[%emt 0:00:01]} a2 {[%emt 0:00:10]} 50. Ra6+ $2 {[%emt 0:00:03]} (50. Ra7 $18 Kd6 51. Kf5) 50... Kf7 $14 {[%emt 0:00:01]} 51. Kf5 {[%emt 0:00:05]} Rf1 $1 {[%emt 0:00:05]} 52. g6+ {[%emt 0:00:01]} ({But not} 52. Rxa2 Rxf3+ 53. Ke4 Rf1 $11) (52. Ra7+ $1 $14 Kg8 53. Rxa2 Rxf3+ 54. Kg6) 52... Kf8 {[%emt 0:00:02] The position is equal.} 53. Rxa2 {[%emt 0:00:02] White threatens f4 and mate.} Rxf3+ {[%emt 0:00:01]} 54. Kg5 {[%emt 0:00:02]} Rg3+ {[%emt 0:00:05]} 55. Kf5 {[%emt 0:00:03]} Rf3+ {[%emt 0:00:01]} 56. Ke4 {Blacks defense is rewarded with a draw.  Weighted Error Value: White=0.53/Black=0.45} 1/2-1/2